[Event "Titled Tuesday Blitz July 25 Early 2023"]
[White "Onufrienko, Vladislav"]
[Black "Tarasova, Viktoriya"]
[WhiteFideId "13804332"]
[BlackFideId "4175840"]
[WhiteElo "2486"]
[BlackElo "2388"]
[Result "1-0"]
[Round "7"]
[TimeControl "180+2"]
[Date "2023.07.25"]
[WhiteClock "0:00:05"]
[BlackClock "0:00:04"]
[Board "143"]

1. e4 {[%clk 0:03:00]}  e5 {[%clk 0:02:59]} 2. Nf3 {[%clk 0:03:01]}  Nc6 {[%clk 0:02:59]} 3. Nc3 {[%clk 0:03:01]}  Nf6 {[%clk 0:02:58]} 4. h3 {[%clk 0:03:02]}  Bc5 {[%clk 0:02:56]} 5. Nxe5 {[%clk 0:03:02]}  Nxe5 {[%clk 0:02:54]} 6. d4 {[%clk 0:03:02]}  Bb4 {[%clk 0:02:54]} 7. dxe5 {[%clk 0:03:01]}  Nxe4 {[%clk 0:02:55]} 8. Qd4 {[%clk 0:03:00]}  Bxc3+ {[%clk 0:02:52]} 9. bxc3 {[%clk 0:03:00]}  Ng5 {[%clk 0:02:52]} 10. Bc4 {[%clk 0:02:39]}  O-O {[%clk 0:02:48]} 11. O-O {[%clk 0:02:36]}  Ne6 {[%clk 0:02:48]} 12. Qe4 {[%clk 0:02:15]}  f5 {[%clk 0:02:39]} 13. exf6 {[%clk 0:02:10]}  Qxf6 {[%clk 0:02:38]} 14. Bd3 {[%clk 0:01:46]}  g6 {[%clk 0:02:35]} 15. Bh6 {[%clk 0:01:44]}  Rf7 {[%clk 0:02:34]} 16. f4 {[%clk 0:01:30]}  c6 {[%clk 0:02:29]} 17. Bg5 {[%clk 0:00:51]}  Qxc3 {[%clk 0:02:21]} 18. Rae1 {[%clk 0:00:45]}  d5 {[%clk 0:02:07]} 19. Qe2 {[%clk 0:00:45]}  Bd7 {[%clk 0:02:03]} 20. Bh6 {[%clk 0:00:32]}  Re8 {[%clk 0:01:47]} 21. f5 {[%clk 0:00:31]}  Nc7 {[%clk 0:01:29]} 22. fxg6 {[%clk 0:00:28]}  hxg6 {[%clk 0:00:51]} 23. Qd1 {[%clk 0:00:21]}  Rxe1 {[%clk 0:00:44]} 24. Rxe1 {[%clk 0:00:22]}  Qf6 {[%clk 0:00:22]} 25. Kh1 {[%clk 0:00:20]}  Kh7 {[%clk 0:00:20]} 26. Bd2 {[%clk 0:00:20]}  Bf5 {[%clk 0:00:20]} 27. Rf1 {[%clk 0:00:19]}  Qg7 {[%clk 0:00:14]} 28. Be2 {[%clk 0:00:13]}  Be4 {[%clk 0:00:12]} 29. Bf3 {[%clk 0:00:11]}  Qf8 {[%clk 0:00:08]} 30. Ba5 {[%clk 0:00:05]}  b6 {[%clk 0:00:08]} 31. Bc3 {[%clk 0:00:04]}  Bxf3 {[%clk 0:00:07]} 32. Rxf3 {[%clk 0:00:05]}  Rxf3 {[%clk 0:00:07]} 33. gxf3 {[%clk 0:00:06]}  Qf5 {[%clk 0:00:07]} 34. Kg2 {[%clk 0:00:05]}  Ne6 {[%clk 0:00:06]} 35. Qd2 {[%clk 0:00:05]}  Nf4+ {[%clk 0:00:06]} 36. Kf2 {[%clk 0:00:05]}  Nxh3+ {[%clk 0:00:06]} 37. Kg3 {[%clk 0:00:06]}  Nf4 {[%clk 0:00:04]} 38. Qxf4 {[%clk 0:00:05]}  Qxf4+ {[%clk 0:00:03]} 39. Kxf4 {[%clk 0:00:06]}  Kg8 {[%clk 0:00:03]} 40. Be5 {[%clk 0:00:07]}  Kf7 {[%clk 0:00:04]} 41. Bb8 {[%clk 0:00:07]}  a6 {[%clk 0:00:04]} 42. Ba7 {[%clk 0:00:08]}  b5 {[%clk 0:00:05]} 43. Bc5 {[%clk 0:00:08]}  Ke6 {[%clk 0:00:05]} 44. Kg5 {[%clk 0:00:07]}  Kf7 {[%clk 0:00:05]} 45. f4 {[%clk 0:00:07]}  Kg7 {[%clk 0:00:05]} 46. Bd4+ {[%clk 0:00:05]}  Kf7 {[%clk 0:00:05]} 47. a3 {[%clk 0:00:04]}  a5 {[%clk 0:00:05]} 48. Bc3 {[%clk 0:00:05]}  a4 {[%clk 0:00:03]} 49. Bd4 {[%clk 0:00:03]}  Ke6 {[%clk 0:00:03]} 50. Kxg6 {[%clk 0:00:03]}  Kd6 {[%clk 0:00:03]} 51. f5 {[%clk 0:00:03]}  c5 {[%clk 0:00:04]} 52. Bb2 {[%clk 0:00:04]}  d4 {[%clk 0:00:04]} 53. f6 {[%clk 0:00:04]}  Kd5 {[%clk 0:00:05]} 54. f7 {[%clk 0:00:05]}  c4 {[%clk 0:00:05]} 55. f8=Q {[%clk 0:00:05]}  c3 {[%clk 0:00:06]} 56. Bc1 {[%clk 0:00:05]}  Ke4 {[%clk 0:00:06]} 57. Qf1 {[%clk 0:00:05]}  Kd5 {[%clk 0:00:04]} 58. Qxb5+ {[%clk 0:00:05]} 1-0


[Site "https://www.chess.com"]

[Event "Titled Tuesday Blitz July 25 Early 2023"]
[White "Llanos, Guillermo"]
[Black "Kirillov, Dmitry"]
[WhiteFideId "100358"]
[BlackFideId "34180572"]
[WhiteElo "2366"]
[BlackElo "2484"]
[Result "1/2-1/2"]
[Round "7"]
[TimeControl "180+2"]
[Date "2023.07.25"]
[WhiteClock "0:00:17"]
[BlackClock "0:00:53"]
[Board "144"]

1. Nf3 {[%clk 0:03:00]}  Nf6 {[%clk 0:02:59]} 2. g3 {[%clk 0:02:59]}  d5 {[%clk 0:02:58]} 3. Bg2 {[%clk 0:02:59]}  c6 {[%clk 0:02:59]} 4. O-O {[%clk 0:02:59]}  Bg4 {[%clk 0:02:59]} 5. Ne5 {[%clk 0:02:57]}  Bf5 {[%clk 0:02:58]} 6. c4 {[%clk 0:02:56]}  e6 {[%clk 0:02:58]} 7. Qb3 {[%clk 0:02:55]}  Qb6 {[%clk 0:02:58]} 8. d3 {[%clk 0:02:54]}  Qxb3 {[%clk 0:02:57]} 9. axb3 {[%clk 0:02:54]}  Nbd7 {[%clk 0:02:57]} 10. Nxd7 {[%clk 0:02:54]}  Nxd7 {[%clk 0:02:56]} 11. Nc3 {[%clk 0:02:51]}  Be7 {[%clk 0:02:51]} 12. cxd5 {[%clk 0:02:40]}  exd5 {[%clk 0:02:49]} 13. e4 {[%clk 0:02:39]}  dxe4 {[%clk 0:02:49]} 14. dxe4 {[%clk 0:02:39]}  Be6 {[%clk 0:02:49]} 15. Be3 {[%clk 0:02:23]}  a6 {[%clk 0:02:48]} 16. f4 {[%clk 0:02:17]}  Bxb3 {[%clk 0:02:43]} 17. e5 {[%clk 0:02:15]}  O-O {[%clk 0:02:40]} 18. Ne4 {[%clk 0:02:09]}  Bd5 {[%clk 0:02:38]} 19. Rfd1 {[%clk 0:02:04]}  Rad8 {[%clk 0:02:36]} 20. Rac1 {[%clk 0:01:54]}  Rfe8 {[%clk 0:02:16]} 21. Kf2 {[%clk 0:01:50]}  g6 {[%clk 0:02:15]} 22. h4 {[%clk 0:01:49]}  h5 {[%clk 0:02:15]} 23. Bf3 {[%clk 0:01:31]}  Kg7 {[%clk 0:02:12]} 24. Rd2 {[%clk 0:01:09]}  Bb4 {[%clk 0:01:59]} 25. Rd4 {[%clk 0:01:04]}  Be7 {[%clk 0:01:56]} 26. Rcd1 {[%clk 0:01:02]}  Bxe4 {[%clk 0:01:46]} 27. Bxe4 {[%clk 0:01:00]}  Nc5 {[%clk 0:01:46]} 28. Bc2 {[%clk 0:00:55]}  Ne6 {[%clk 0:01:45]} 29. Rxd8 {[%clk 0:00:54]}  Rxd8 {[%clk 0:01:46]} 30. Rxd8 {[%clk 0:00:54]}  Bxd8 {[%clk 0:01:42]} 31. f5 {[%clk 0:00:48]}  gxf5 {[%clk 0:01:37]} 32. Bxf5 {[%clk 0:00:48]}  Bc7 {[%clk 0:01:37]} 33. Bf4 {[%clk 0:00:40]}  Nxf4 {[%clk 0:01:36]} 34. gxf4 {[%clk 0:00:39]}  f6 {[%clk 0:01:34]} 35. exf6+ {[%clk 0:00:34]}  Kxf6 {[%clk 0:01:35]} 36. Bc8 {[%clk 0:00:34]}  b5 {[%clk 0:01:35]} 37. Bxa6 {[%clk 0:00:26]}  Bxf4 {[%clk 0:01:35]} 38. Bb7 {[%clk 0:00:26]}  c5 {[%clk 0:01:35]} 39. Bc6 {[%clk 0:00:26]}  b4 {[%clk 0:01:35]} 40. b3 {[%clk 0:00:26]}  Ke5 {[%clk 0:01:18]} 41. Bb5 {[%clk 0:00:22]}  Ke4 {[%clk 0:01:16]} 42. Kg2 {[%clk 0:00:20]}  Be5 {[%clk 0:01:15]} 43. Kh3 {[%clk 0:00:19]}  Kf4 {[%clk 0:01:15]} 44. Bc4 {[%clk 0:00:19]}  Ke3 {[%clk 0:01:15]} 45. Bf7 {[%clk 0:00:19]}  Kd4 {[%clk 0:01:14]} 46. Bc4 {[%clk 0:00:18]}  Bf4 {[%clk 0:01:13]} 47. Be6 {[%clk 0:00:18]}  Ke3 {[%clk 0:01:13]} 48. Bc4 {[%clk 0:00:18]}  Kd2 {[%clk 0:01:14]} 49. Be6 {[%clk 0:00:18]}  Kc3 {[%clk 0:01:15]} 50. Bc4 {[%clk 0:00:18]}  Kd4 {[%clk 0:01:14]} 51. Bf7 {[%clk 0:00:18]}  Be5 {[%clk 0:01:11]} 52. Bc4 {[%clk 0:00:18]}  Bf6 {[%clk 0:01:11]} 53. Be6 {[%clk 0:00:18]}  Ke5 {[%clk 0:01:11]} 54. Bc4 {[%clk 0:00:18]}  Kf4 {[%clk 0:01:11]} 55. Be6 {[%clk 0:00:18]}  Ke3 {[%clk 0:01:12]} 56. Bc4 {[%clk 0:00:18]}  Kf2 {[%clk 0:01:12]} 57. Be6 {[%clk 0:00:19]}  Kg1 {[%clk 0:01:13]} 58. Bc4 {[%clk 0:00:19]}  Kh1 {[%clk 0:01:12]} 59. Bf7 {[%clk 0:00:18]}  Kg1 {[%clk 0:01:12]} 60. Bxh5 {[%clk 0:00:18]}  Kf2 {[%clk 0:00:52]} 61. Bf7 {[%clk 0:00:18]}  Kf3 {[%clk 0:00:52]} 62. Bc4 {[%clk 0:00:16]}  Kf4 {[%clk 0:00:52]} 63. Bd5 {[%clk 0:00:16]}  Bd4 {[%clk 0:00:52]} 64. Bc4 {[%clk 0:00:16]}  Bf6 {[%clk 0:00:52]} 65. Bd5 {[%clk 0:00:16]}  Bd4 {[%clk 0:00:53]} 66. Bc4 {[%clk 0:00:17]}  Bf6 {[%clk 0:00:53]} 1/2-1/2


[Site "https://www.chess.com"]

[Event "Titled Tuesday Blitz July 25 Early 2023"]
[White "Lehtosaari, Mauri"]
[Black "Nayak Rajesh"]
[WhiteFideId "501999"]
[BlackFideId "35017152"]
[WhiteElo "2478"]
[BlackElo "2334"]
[Result "1/2-1/2"]
[Round "7"]
[TimeControl "180+2"]
[Date "2023.07.25"]
[WhiteClock "0:00:04"]
[BlackClock "0:00:02"]
[Board "146"]

1. d4 {[%clk 0:03:00]}  Nf6 {[%clk 0:02:59]} 2. Nf3 {[%clk 0:03:00]}  g6 {[%clk 0:03:00]} 3. Bg5 {[%clk 0:03:00]}  Bg7 {[%clk 0:03:01]} 4. Nbd2 {[%clk 0:03:00]}  d6 {[%clk 0:03:01]} 5. e3 {[%clk 0:03:00]}  O-O {[%clk 0:03:01]} 6. Bc4 {[%clk 0:03:01]}  c6 {[%clk 0:02:59]} 7. O-O {[%clk 0:03:01]}  b5 {[%clk 0:02:58]} 8. Bb3 {[%clk 0:03:01]}  a5 {[%clk 0:02:59]} 9. a3 {[%clk 0:02:59]}  a4 {[%clk 0:02:58]} 10. Ba2 {[%clk 0:02:59]}  Be6 {[%clk 0:02:57]} 11. Bxe6 {[%clk 0:02:53]}  fxe6 {[%clk 0:02:58]} 12. b3 {[%clk 0:02:51]}  Nbd7 {[%clk 0:02:54]} 13. c4 {[%clk 0:02:50]}  axb3 {[%clk 0:02:46]} 14. Qxb3 {[%clk 0:02:49]}  bxc4 {[%clk 0:02:13]} 15. Qxc4 {[%clk 0:02:45]}  Nd5 {[%clk 0:02:14]} 16. Qxc6 {[%clk 0:02:31]}  h6 {[%clk 0:02:08]} 17. Bh4 {[%clk 0:02:27]}  g5 {[%clk 0:02:08]} 18. Bg3 {[%clk 0:02:27]}  Qc8 {[%clk 0:02:07]} 19. Rfc1 {[%clk 0:02:17]}  Qxc6 {[%clk 0:02:04]} 20. Rxc6 {[%clk 0:02:18]}  Ra4 {[%clk 0:02:04]} 21. h3 {[%clk 0:01:25]}  Rfa8 {[%clk 0:02:02]} 22. Rb1 {[%clk 0:01:15]}  Rxa3 {[%clk 0:01:59]} 23. Rb7 {[%clk 0:01:15]}  R3a7 {[%clk 0:01:58]} 24. Rxa7 {[%clk 0:01:13]}  Rxa7 {[%clk 0:01:58]} 25. Rc8+ {[%clk 0:01:12]}  Kf7 {[%clk 0:01:57]} 26. e4 {[%clk 0:01:09]}  Rc7 {[%clk 0:01:41]} 27. Rxc7 {[%clk 0:01:02]}  Nxc7 {[%clk 0:01:40]} 28. Kf1 {[%clk 0:01:03]}  Nb5 {[%clk 0:01:39]} 29. Nb3 {[%clk 0:01:00]}  Nf6 {[%clk 0:01:38]} 30. e5 {[%clk 0:00:59]}  Nd5 {[%clk 0:01:34]} 31. Ke2 {[%clk 0:00:57]}  Ndc3+ {[%clk 0:01:25]} 32. Kd3 {[%clk 0:00:56]}  d5 {[%clk 0:01:25]} 33. Nc5 {[%clk 0:00:54]}  Nd1 {[%clk 0:01:13]} 34. Ne1 {[%clk 0:00:44]}  Nb2+ {[%clk 0:01:06]} 35. Ke3 {[%clk 0:00:41]}  Nc4+ {[%clk 0:01:05]} 36. Kd3 {[%clk 0:00:40]}  Nb2+ {[%clk 0:01:05]} 37. Kc2 {[%clk 0:00:32]}  Nc4 {[%clk 0:01:02]} 38. Nf3 {[%clk 0:00:30]}  Nc7 {[%clk 0:00:49]} 39. Kb3 {[%clk 0:00:27]}  Kg6 {[%clk 0:00:48]} 40. Kb4 {[%clk 0:00:26]}  h5 {[%clk 0:00:48]} 41. Bh2 {[%clk 0:00:25]}  g4 {[%clk 0:00:46]} 42. Ne1 {[%clk 0:00:24]}  Kf5 {[%clk 0:00:45]} 43. hxg4+ {[%clk 0:00:24]}  hxg4 {[%clk 0:00:45]} 44. f3 {[%clk 0:00:18]}  Bh6 {[%clk 0:00:41]} 45. Ned3 {[%clk 0:00:15]}  Bd2+ {[%clk 0:00:40]} 46. Kb3 {[%clk 0:00:15]}  gxf3 {[%clk 0:00:35]} 47. gxf3 {[%clk 0:00:16]}  Nb5 {[%clk 0:00:35]} 48. Bg1 {[%clk 0:00:13]}  Be3 {[%clk 0:00:32]} 49. Bxe3 {[%clk 0:00:10]}  Nxe3 {[%clk 0:00:32]} 50. Kb4 {[%clk 0:00:05]}  Nxd4 {[%clk 0:00:31]} 51. Ka5 {[%clk 0:00:05]}  Nxf3 {[%clk 0:00:30]} 52. Kb6 {[%clk 0:00:05]}  Nxe5 {[%clk 0:00:30]} 53. Nf2 {[%clk 0:00:02]}  N3g4 {[%clk 0:00:27]} 54. Nd1 {[%clk 0:00:02]}  d4 {[%clk 0:00:23]} 55. Kb5 {[%clk 0:00:02]}  Ne3 {[%clk 0:00:20]} 56. Nf2 {[%clk 0:00:02]}  N5g4 {[%clk 0:00:19]} 57. Nfd3 {[%clk 0:00:02]}  e5 {[%clk 0:00:18]} 58. Kb4 {[%clk 0:00:01]}  e4 {[%clk 0:00:18]} 59. Nc1 {[%clk 0:00:02]}  d3 {[%clk 0:00:17]} 60. N1xd3 {[%clk 0:00:03]}  exd3 {[%clk 0:00:16]} 61. Nxd3 {[%clk 0:00:04]}  Nd5+ {[%clk 0:00:14]} 62. Kc5 {[%clk 0:00:03]}  Nf4 {[%clk 0:00:14]} 63. Nb4 {[%clk 0:00:03]}  e5 {[%clk 0:00:13]} 64. Kc4 {[%clk 0:00:03]}  e4 {[%clk 0:00:11]} 65. Nc2 {[%clk 0:00:04]}  Ne5+ {[%clk 0:00:09]} 66. Kc3 {[%clk 0:00:04]}  Nf3 {[%clk 0:00:09]} 67. Ne3+ {[%clk 0:00:03]}  Kg5 {[%clk 0:00:08]} 68. Kc4 {[%clk 0:00:03]}  Kh4 {[%clk 0:00:09]} 69. Kc5 {[%clk 0:00:02]}  Kg3 {[%clk 0:00:09]} 70. Nf5+ {[%clk 0:00:02]}  Kf2 {[%clk 0:00:09]} 71. Kc4 {[%clk 0:00:03]}  Ne2 {[%clk 0:00:08]} 72. Kd5 {[%clk 0:00:03]}  Ng3 {[%clk 0:00:08]} 73. Nxg3 {[%clk 0:00:01]}  e3 {[%clk 0:00:07]} 74. Ne4+ {[%clk 0:00:01]}  Kg1 {[%clk 0:00:05]} 75. Nc3 {[%clk 0:00:02]}  Kf1 {[%clk 0:00:04]} 76. Ke4 {[%clk 0:00:02]}  Kf2 {[%clk 0:00:02]} 77. Nd1+ {[%clk 0:00:03]}  Ke2 {[%clk 0:00:02]} 78. Nxe3 {[%clk 0:00:04]} 1/2-1/2


[Site "https://www.chess.com"]

[Event "Titled Tuesday Blitz July 25 Early 2023"]
[White "Wernberg, Hugo"]
[Black "Michalczak, Thomas"]
[WhiteFideId "1737511"]
[BlackFideId "4622634"]
[WhiteElo "2352"]
[BlackElo "2474"]
[Result "0-1"]
[Round "7"]
[TimeControl "180+2"]
[Date "2023.07.25"]
[WhiteClock "0:00:00"]
[BlackClock "0:00:58"]
[Board "147"]

1. d4 {[%clk 0:03:00]}  Nf6 {[%clk 0:02:58]} 2. c4 {[%clk 0:03:01]}  e6 {[%clk 0:02:56]} 3. Nf3 {[%clk 0:03:01]}  d5 {[%clk 0:02:56]} 4. g3 {[%clk 0:03:01]}  Be7 {[%clk 0:02:54]} 5. Bg2 {[%clk 0:03:01]}  O-O {[%clk 0:02:54]} 6. O-O {[%clk 0:03:02]}  dxc4 {[%clk 0:02:54]} 7. Qc2 {[%clk 0:03:01]}  b5 {[%clk 0:02:54]} 8. a4 {[%clk 0:03:01]}  Bb7 {[%clk 0:02:54]} 9. axb5 {[%clk 0:03:00]}  a6 {[%clk 0:02:54]} 10. Nc3 {[%clk 0:03:00]}  axb5 {[%clk 0:02:54]} 11. Rxa8 {[%clk 0:03:00]}  Bxa8 {[%clk 0:02:54]} 12. Nxb5 {[%clk 0:03:00]}  Bd5 {[%clk 0:02:51]} 13. Bf4 {[%clk 0:02:52]}  c6 {[%clk 0:02:44]} 14. Nc3 {[%clk 0:02:21]}  Bxf3 {[%clk 0:02:43]} 15. Bxf3 {[%clk 0:02:14]}  Qxd4 {[%clk 0:02:43]} 16. Rd1 {[%clk 0:02:03]}  Qb6 {[%clk 0:02:43]} 17. Na4 {[%clk 0:01:49]}  Qb5 {[%clk 0:02:34]} 18. Rc1 {[%clk 0:01:45]}  Rd8 {[%clk 0:02:10]} 19. Kg2 {[%clk 0:01:34]}  Nd5 {[%clk 0:02:07]} 20. Qxc4 {[%clk 0:01:25]}  Nxf4+ {[%clk 0:02:04]} 21. gxf4 {[%clk 0:01:26]}  Qf5 {[%clk 0:01:33]} 22. e3 {[%clk 0:01:06]}  c5 {[%clk 0:01:29]} 23. Qe4 {[%clk 0:00:35]}  Qxe4 {[%clk 0:01:21]} 24. Bxe4 {[%clk 0:00:36]}  Nd7 {[%clk 0:01:21]} 25. Bc6 {[%clk 0:00:24]}  Nf6 {[%clk 0:01:21]} 26. Kf3 {[%clk 0:00:15]}  Rc8 {[%clk 0:01:19]} 27. Be4 {[%clk 0:00:14]}  h6 {[%clk 0:01:04]} 28. Bd3 {[%clk 0:00:12]}  Kf8 {[%clk 0:01:04]} 29. b4 {[%clk 0:00:11]}  Rd8 {[%clk 0:00:59]} 30. Ke2 {[%clk 0:00:00]}  cxb4 {[%clk 0:00:58]} 0-1


[Site "https://www.chess.com"]

[Event "Titled Tuesday Blitz July 25 Early 2023"]
[White "Erzhanov, Arman"]
[Black "Szente Varga, Fruzsina"]
[WhiteFideId "4138821"]
[BlackFideId "712264"]
[WhiteElo "2473"]
[BlackElo "2320"]
[Result "1-0"]
[Round "7"]
[TimeControl "180+2"]
[Date "2023.07.25"]
[WhiteClock "0:00:46"]
[BlackClock "0:00:04"]
[Board "148"]

1. e4 {[%clk 0:03:00]}  e5 {[%clk 0:02:58]} 2. Nf3 {[%clk 0:02:59]}  Nc6 {[%clk 0:02:58]} 3. Bb5 {[%clk 0:02:58]}  a6 {[%clk 0:02:58]} 4. Bxc6 {[%clk 0:02:58]}  dxc6 {[%clk 0:02:58]} 5. Nc3 {[%clk 0:02:59]}  Bg4 {[%clk 0:02:57]} 6. h3 {[%clk 0:02:59]}  Bxf3 {[%clk 0:02:57]} 7. Qxf3 {[%clk 0:02:59]}  Nf6 {[%clk 0:02:56]} 8. d3 {[%clk 0:02:59]}  Qd6 {[%clk 0:02:45]} 9. Bg5 {[%clk 0:02:48]}  Be7 {[%clk 0:02:44]} 10. O-O-O {[%clk 0:02:45]}  c5 {[%clk 0:02:42]} 11. Qe3 {[%clk 0:02:33]}  h6 {[%clk 0:02:36]} 12. Bh4 {[%clk 0:02:32]}  g5 {[%clk 0:02:36]} 13. Bg3 {[%clk 0:02:31]}  O-O-O {[%clk 0:02:36]} 14. f3 {[%clk 0:02:27]}  c6 {[%clk 0:02:18]} 15. h4 {[%clk 0:02:26]}  Nh5 {[%clk 0:02:06]} 16. Bf2 {[%clk 0:02:25]}  Nf4 {[%clk 0:02:06]} 17. g3 {[%clk 0:02:20]}  Ne6 {[%clk 0:02:04]} 18. g4 {[%clk 0:02:08]}  h5 {[%clk 0:01:37]} 19. Qe1 {[%clk 0:01:46]}  Nd4 {[%clk 0:01:28]} 20. Bxd4 {[%clk 0:01:42]}  cxd4 {[%clk 0:01:28]} 21. Ne2 {[%clk 0:01:42]}  hxg4 {[%clk 0:01:27]} 22. fxg4 {[%clk 0:01:38]}  gxh4 {[%clk 0:01:27]} 23. Kb1 {[%clk 0:01:37]}  Bg5 {[%clk 0:01:26]} 24. Ng1 {[%clk 0:01:36]}  Bf4 {[%clk 0:01:02]} 25. Rxh4 {[%clk 0:01:36]}  Qf6 {[%clk 0:00:56]} 26. Nf3 {[%clk 0:01:30]}  Rdg8 {[%clk 0:00:51]} 27. Qf2 {[%clk 0:01:04]}  Rxh4 {[%clk 0:00:48]} 28. Nxh4 {[%clk 0:01:03]}  Rxg4 {[%clk 0:00:48]} 29. Nf5 {[%clk 0:01:04]}  Kc7 {[%clk 0:00:35]} 30. Rh1 {[%clk 0:01:04]}  Qg5 {[%clk 0:00:23]} 31. Qe1 {[%clk 0:00:58]}  Rg2 {[%clk 0:00:15]} 32. Qa5+ {[%clk 0:00:53]}  Kd7 {[%clk 0:00:10]} 33. a4 {[%clk 0:00:47]}  Rg1+ {[%clk 0:00:10]} 34. Rxg1 {[%clk 0:00:47]}  Qxg1+ {[%clk 0:00:11]} 35. Ka2 {[%clk 0:00:48]}  Qg2 {[%clk 0:00:07]} 36. Qc5 {[%clk 0:00:48]}  Qg8 {[%clk 0:00:04]} 37. Qe7+ {[%clk 0:00:45]}  Kc8 {[%clk 0:00:04]} 38. Nd6+ {[%clk 0:00:45]}  Kb8 {[%clk 0:00:04]} 39. Qxb7# {[%clk 0:00:46]} 1-0


[Site "https://www.chess.com"]

[Event "Titled Tuesday Blitz July 25 Early 2023"]
[White "Kayis, Gulcan Sena"]
[Black "Ionescu, Mihai"]
[WhiteFideId "34553045"]
[BlackFideId "1202499"]
[WhiteElo "2235"]
[BlackElo "2434"]
[Result "1-0"]
[Round "7"]
[TimeControl "180+2"]
[Date "2023.07.25"]
[WhiteClock "0:00:20"]
[BlackClock "0:00:00"]
[Board "152"]

1. e4 {[%clk 0:03:00]}  c5 {[%clk 0:02:57]} 2. c3 {[%clk 0:03:00]}  d5 {[%clk 0:02:52]} 3. exd5 {[%clk 0:03:00]}  Qxd5 {[%clk 0:02:53]} 4. d4 {[%clk 0:03:00]}  g6 {[%clk 0:02:52]} 5. Nf3 {[%clk 0:03:00]}  Bg7 {[%clk 0:02:51]} 6. Na3 {[%clk 0:02:59]}  cxd4 {[%clk 0:02:50]} 7. Bc4 {[%clk 0:02:59]}  Qd8 {[%clk 0:02:50]} 8. cxd4 {[%clk 0:02:48]}  Nf6 {[%clk 0:02:47]} 9. O-O {[%clk 0:02:46]}  O-O {[%clk 0:02:45]} 10. Re1 {[%clk 0:02:45]}  Bf5 {[%clk 0:02:37]} 11. Bf4 {[%clk 0:02:40]}  e6 {[%clk 0:02:35]} 12. Rc1 {[%clk 0:02:36]}  a6 {[%clk 0:02:34]} 13. Bb3 {[%clk 0:02:32]}  Nc6 {[%clk 0:02:31]} 14. Nc4 {[%clk 0:02:30]}  Nd5 {[%clk 0:02:13]} 15. Bg3 {[%clk 0:02:28]}  Bg4 {[%clk 0:01:39]} 16. Nce5 {[%clk 0:02:19]}  Bxf3 {[%clk 0:01:21]} 17. Nxf3 {[%clk 0:02:17]}  Rc8 {[%clk 0:01:20]} 18. Ne5 {[%clk 0:02:14]}  Na5 {[%clk 0:01:11]} 19. Bc2 {[%clk 0:02:07]}  Nc4 {[%clk 0:00:39]} 20. b3 {[%clk 0:01:45]}  Nc3 {[%clk 0:00:38]} 21. Qf3 {[%clk 0:01:39]}  Nxe5 {[%clk 0:00:31]} 22. dxe5 {[%clk 0:01:39]}  Nxa2 {[%clk 0:00:31]} 23. Rcd1 {[%clk 0:01:39]}  Qe7 {[%clk 0:00:31]} 24. Be4 {[%clk 0:01:35]}  Rc7 {[%clk 0:00:25]} 25. Rd6 {[%clk 0:01:23]}  Nc3 {[%clk 0:00:22]} 26. h3 {[%clk 0:01:21]}  Nxe4 {[%clk 0:00:21]} 27. Qxe4 {[%clk 0:01:21]}  Rfc8 {[%clk 0:00:22]} 28. Red1 {[%clk 0:01:17]}  h5 {[%clk 0:00:20]} 29. Bh4 {[%clk 0:01:16]}  g5 {[%clk 0:00:15]} 30. Bg3 {[%clk 0:01:10]}  h4 {[%clk 0:00:15]} 31. Bh2 {[%clk 0:01:09]}  Rc1 {[%clk 0:00:11]} 32. g3 {[%clk 0:00:59]}  hxg3 {[%clk 0:00:08]} 33. Bxg3 {[%clk 0:00:58]}  Rxd1+ {[%clk 0:00:08]} 34. Rxd1 {[%clk 0:00:56]}  Qc5 {[%clk 0:00:05]} 35. Qxb7 {[%clk 0:00:47]}  Qc2 {[%clk 0:00:05]} 36. Rd7 {[%clk 0:00:45]}  Rf8 {[%clk 0:00:01]} 37. Qxa6 {[%clk 0:00:42]}  Qf5 {[%clk 0:00:02]} 38. Qb5 {[%clk 0:00:39]}  Qxh3 {[%clk 0:00:01]} 39. b4 {[%clk 0:00:36]}  g4 {[%clk 0:00:02]} 40. Qb7 {[%clk 0:00:31]}  Kh7 {[%clk 0:00:02]} 41. Rxf7 {[%clk 0:00:30]}  Rxf7 {[%clk 0:00:02]} 42. Qxf7 {[%clk 0:00:30]}  Qh6 {[%clk 0:00:02]} 43. b5 {[%clk 0:00:24]}  Qc1+ {[%clk 0:00:02]} 44. Kh2 {[%clk 0:00:24]}  Qc5 {[%clk 0:00:01]} 45. Qxe6 {[%clk 0:00:21]}  Qxb5 {[%clk 0:00:02]} 46. Qxg4 {[%clk 0:00:21]}  Qd5 {[%clk 0:00:00]} 47. Qf5+ {[%clk 0:00:20]} 1-0


[Site "https://www.chess.com"]

[Event "Titled Tuesday Blitz July 25 Early 2023"]
[White "Feliz Dotel, Dewar Bienvenido"]
[Black "Valgmae, Toomas"]
[WhiteFideId "6402801"]
[BlackFideId "4502523"]
[WhiteElo "2091"]
[BlackElo "2433"]
[Result "0-1"]
[Round "7"]
[TimeControl "180+2"]
[Date "2023.07.25"]
[WhiteClock "0:00:00"]
[BlackClock "0:00:57"]
[Board "153"]

1. d4 {[%clk 0:02:58]}  d5 {[%clk 0:03:00]} 2. e3 {[%clk 0:02:58]}  Nf6 {[%clk 0:02:59]} 3. Nf3 {[%clk 0:02:59]}  Bg4 {[%clk 0:02:59]} 4. h3 {[%clk 0:02:58]}  Bh5 {[%clk 0:02:59]} 5. g4 {[%clk 0:02:58]}  Bg6 {[%clk 0:02:59]} 6. Ne5 {[%clk 0:02:58]}  Nbd7 {[%clk 0:02:57]} 7. h4 {[%clk 0:02:56]}  h5 {[%clk 0:02:53]} 8. Nxg6 {[%clk 0:02:56]}  fxg6 {[%clk 0:02:54]} 9. Bd3 {[%clk 0:02:52]}  Kf7 {[%clk 0:02:54]} 10. g5 {[%clk 0:02:48]}  Ne4 {[%clk 0:02:52]} 11. Nc3 {[%clk 0:02:44]}  Nxc3 {[%clk 0:02:44]} 12. Qf3+ {[%clk 0:02:43]}  Ke6 {[%clk 0:02:31]} 13. bxc3 {[%clk 0:02:42]}  Kd6 {[%clk 0:02:26]} 14. Ba3+ {[%clk 0:02:37]}  Kc6 {[%clk 0:02:25]} 15. c4 {[%clk 0:02:37]}  Nb6 {[%clk 0:02:16]} 16. cxd5+ {[%clk 0:02:34]}  Nxd5 {[%clk 0:02:16]} 17. c4 {[%clk 0:02:34]}  e6 {[%clk 0:02:15]} 18. cxd5+ {[%clk 0:02:24]}  exd5 {[%clk 0:02:11]} 19. Bxf8 {[%clk 0:02:21]}  Rxf8 {[%clk 0:02:09]} 20. Qe2 {[%clk 0:02:20]}  Kd7 {[%clk 0:02:04]} 21. Bxg6 {[%clk 0:02:09]}  Qe7 {[%clk 0:02:02]} 22. Rb1 {[%clk 0:01:55]}  Kc8 {[%clk 0:01:57]} 23. Qb5 {[%clk 0:01:52]}  c6 {[%clk 0:01:57]} 24. Qb4 {[%clk 0:01:46]}  Qd8 {[%clk 0:01:48]} 25. Bxh5 {[%clk 0:01:39]}  Rb8 {[%clk 0:01:46]} 26. Bg4+ {[%clk 0:01:35]}  Kc7 {[%clk 0:01:45]} 27. Rh3 {[%clk 0:01:11]}  a6 {[%clk 0:01:42]} 28. Rf3 {[%clk 0:01:07]}  Rxf3 {[%clk 0:01:37]} 29. Bxf3 {[%clk 0:01:08]}  Qd7 {[%clk 0:01:34]} 30. Ke2 {[%clk 0:01:03]}  b5 {[%clk 0:01:33]} 31. h5 {[%clk 0:01:00]}  Qf5 {[%clk 0:01:27]} 32. Rb2 {[%clk 0:00:49]}  Rf8 {[%clk 0:01:26]} 33. Qe7+ {[%clk 0:00:43]}  Kb6 {[%clk 0:01:24]} 34. Qc5+ {[%clk 0:00:38]}  Kb7 {[%clk 0:01:24]} 35. Qe7+ {[%clk 0:00:23]}  Ka8 {[%clk 0:01:18]} 36. Qc7 {[%clk 0:00:13]}  Qxf3+ {[%clk 0:01:15]} 37. Kd3 {[%clk 0:00:14]}  Qe4+ {[%clk 0:01:10]} 38. Kc3 {[%clk 0:00:14]}  Qe6 {[%clk 0:01:10]} 39. Qb6 {[%clk 0:00:13]}  Re8 {[%clk 0:01:01]} 40. Qxa6+ {[%clk 0:00:13]}  Kb8 {[%clk 0:01:02]} 41. Qb6+ {[%clk 0:00:13]}  Kc8 {[%clk 0:01:02]} 42. Rc2 {[%clk 0:00:08]}  Re7 {[%clk 0:00:59]} 43. Kb2 {[%clk 0:00:07]}  Rc7 {[%clk 0:00:59]} 44. a4 {[%clk 0:00:06]}  bxa4 {[%clk 0:00:58]} 45. Qa6+ {[%clk 0:00:05]}  Kd7 {[%clk 0:00:58]} 46. Ka2 {[%clk 0:00:03]}  Qe4 {[%clk 0:00:56]} 47. Qxa4 {[%clk 0:00:00]}  Qd3 {[%clk 0:00:57]} 0-1


[Site "https://www.chess.com"]